[Event "Titled Tuesday Blitz March 01 Early 2022"]
[White "Panesar Vedant"]
[Black "Cori T., Deysi"]
[WhiteFideId "35033018"]
[BlackFideId "3801934"]
[WhiteElo "1971"]
[BlackElo "2350"]
[Result "1-0"]
[Round "09"]
[TimeControl "180+1"]
[Date "2022.03.01"]
[WhiteClock "0:00:26"]
[BlackClock "0:00:19"]

1. d4 {[%clk 0:03:00]}  f5 {[%clk 0:02:58]} 2. Bg5 {[%clk 0:03:00]}  d6 {[%clk 0:02:56]} 3. e3 {[%clk 0:02:56]}  c5 {[%clk 0:02:56]} 4. dxc5 {[%clk 0:02:38]}  Qa5+ {[%clk 0:02:55]} 5. Nc3 {[%clk 0:02:33]}  Qxc5 {[%clk 0:02:56]} 6. Qd5 {[%clk 0:02:07]}  Qb6 {[%clk 0:02:38]} 7. O-O-O {[%clk 0:02:03]}  Nc6 {[%clk 0:02:35]} 8. Nf3 {[%clk 0:01:51]}  h6 {[%clk 0:02:34]} 9. Bh4 {[%clk 0:01:45]}  g5 {[%clk 0:02:35]} 10. Bg3 {[%clk 0:01:35]}  Nf6 {[%clk 0:02:31]} 11. Qb5 {[%clk 0:01:28]}  e5 {[%clk 0:02:22]} 12. h4 {[%clk 0:01:24]}  g4 {[%clk 0:02:22]} 13. Nd2 {[%clk 0:01:21]}  Be6 {[%clk 0:02:20]} 14. Nc4 {[%clk 0:01:19]}  Qc7 {[%clk 0:02:21]} 15. h5 {[%clk 0:01:07]}  Kf7 {[%clk 0:02:13]} 16. Bh4 {[%clk 0:01:04]}  Nd7 {[%clk 0:02:12]} 17. Nd5 {[%clk 0:01:04]}  Qb8 {[%clk 0:02:06]} 18. f3 {[%clk 0:00:57]}  gxf3 {[%clk 0:02:04]} 19. gxf3 {[%clk 0:00:57]}  Nc5 {[%clk 0:02:03]} 20. Rg1 {[%clk 0:00:48]}  a6 {[%clk 0:00:52]} 21. Qb6 {[%clk 0:00:47]}  Nd7 {[%clk 0:00:52]} 22. Qb3 {[%clk 0:00:45]}  b5 {[%clk 0:00:52]} 23. Nd2 {[%clk 0:00:42]}  Nc5 {[%clk 0:00:51]} 24. Qc3 {[%clk 0:00:33]}  Bxd5 {[%clk 0:00:48]} 25. e4 {[%clk 0:00:34]}  Be6 {[%clk 0:00:28]} 26. exf5 {[%clk 0:00:34]}  Bxf5 {[%clk 0:00:28]} 27. Ne4 {[%clk 0:00:33]}  Nd4 {[%clk 0:00:28]} 28. Rxd4 {[%clk 0:00:32]}  exd4 {[%clk 0:00:25]} 29. Qxd4 {[%clk 0:00:33]}  Rg8 {[%clk 0:00:24]} 30. Qf6+ {[%clk 0:00:30]}  Ke8 {[%clk 0:00:24]} 31. Rxg8 {[%clk 0:00:30]}  Kd7 {[%clk 0:00:24]} 32. Qxf5+ {[%clk 0:00:30]}  Kc6 {[%clk 0:00:25]} 33. Nxc5 {[%clk 0:00:28]}  dxc5 {[%clk 0:00:24]} 34. Bd3 {[%clk 0:00:29]}  Kb6 {[%clk 0:00:24]} 35. Be4 {[%clk 0:00:29]}  Qh2 {[%clk 0:00:21]} 36. Qe6+ {[%clk 0:00:28]}  Ka5 {[%clk 0:00:21]} 37. Be1+ {[%clk 0:00:26]}  b4 {[%clk 0:00:22]} 38. Bxa8 {[%clk 0:00:26]}  Qf4+ {[%clk 0:00:20]} 39. Kb1 {[%clk 0:00:26]}  Bd6 {[%clk 0:00:19]} 40. a3 {[%clk 0:00:26]}  Be5 {[%clk 0:00:19]} 41. axb4+ {[%clk 0:00:27]}  Ka4 {[%clk 0:00:19]} 42. Qxa6# {[%clk 0:00:26]} 1-0


[Site "https://www.chess.com"]

[Event "Titled Tuesday Blitz March 01 Early 2022"]
[White "Petrova, Irina"]
[Black "Piliczewski, Bogusz"]
[WhiteFideId "14124122"]
[BlackFideId "1104144"]
[WhiteElo "1988"]
[BlackElo "1896"]
[Result "1-0"]
[Round "09"]
[TimeControl "180+1"]
[Date "2022.03.01"]
[WhiteClock "0:01:49"]
[BlackClock "0:00:15"]

1. e4 {[%clk 0:03:00]}  c6 {[%clk 0:02:56]} 2. d4 {[%clk 0:03:00]}  d5 {[%clk 0:02:57]} 3. e5 {[%clk 0:02:59]}  c5 {[%clk 0:02:56]} 4. dxc5 {[%clk 0:02:58]}  e6 {[%clk 0:02:55]} 5. a3 {[%clk 0:02:56]}  Bxc5 {[%clk 0:02:53]} 6. Qg4 {[%clk 0:02:53]}  Kf8 {[%clk 0:02:41]} 7. b4 {[%clk 0:02:52]}  Bb6 {[%clk 0:02:37]} 8. Bb2 {[%clk 0:02:51]}  Ne7 {[%clk 0:02:35]} 9. Bd3 {[%clk 0:02:47]}  Ng6 {[%clk 0:02:31]} 10. Nf3 {[%clk 0:02:46]}  Nc6 {[%clk 0:02:30]} 11. Nbd2 {[%clk 0:02:40]}  Bc7 {[%clk 0:02:26]} 12. O-O {[%clk 0:02:26]}  Ncxe5 {[%clk 0:02:17]} 13. Nxe5 {[%clk 0:02:25]}  Bxe5 {[%clk 0:02:15]} 14. Bxe5 {[%clk 0:02:20]}  Nxe5 {[%clk 0:02:15]} 15. Qg3 {[%clk 0:02:20]}  Nxd3 {[%clk 0:02:13]} 16. cxd3 {[%clk 0:02:21]}  g6 {[%clk 0:02:10]} 17. Qe5 {[%clk 0:02:14]}  f6 {[%clk 0:02:11]} 18. Qg3 {[%clk 0:02:09]}  Kf7 {[%clk 0:02:10]} 19. Rac1 {[%clk 0:02:10]}  e5 {[%clk 0:02:01]} 20. f4 {[%clk 0:02:09]}  e4 {[%clk 0:01:53]} 21. dxe4 {[%clk 0:02:07]}  dxe4 {[%clk 0:01:53]} 22. Nxe4 {[%clk 0:02:06]}  Bf5 {[%clk 0:01:40]} 23. Nc5 {[%clk 0:01:59]}  Qd4+ {[%clk 0:01:27]} 24. Kh1 {[%clk 0:01:59]}  b6 {[%clk 0:01:23]} 25. Rfd1 {[%clk 0:01:55]}  Qb2 {[%clk 0:01:17]} 26. Nb7 {[%clk 0:01:54]}  Rac8 {[%clk 0:01:12]} 27. Nd6+ {[%clk 0:01:54]}  Ke7 {[%clk 0:01:01]} 28. Qe3+ {[%clk 0:01:52]}  Be6 {[%clk 0:00:53]} 29. Nxc8+ {[%clk 0:01:50]}  Rxc8 {[%clk 0:00:23]} 30. Rxc8 {[%clk 0:01:51]}  Kf7 {[%clk 0:00:21]} 31. Rc7+ {[%clk 0:01:50]}  Kf8 {[%clk 0:00:15]} 32. Qxe6 {[%clk 0:01:49]} 1-0


[Site "https://www.chess.com"]

[Event "Titled Tuesday Blitz March 01 Early 2022"]
[White "Ponkratov, Pavel"]
[Black "Jary, Sergey"]
[WhiteFideId "4157800"]
[BlackFideId "14110350"]
[WhiteElo "2487"]
[BlackElo "2260"]
[Result "1-0"]
[Round "09"]
[TimeControl "180+1"]
[Date "2022.03.01"]
[WhiteClock "0:01:33"]
[BlackClock "0:00:02"]

1. c4 {[%clk 0:03:00]}  Nf6 {[%clk 0:02:59]} 2. Nc3 {[%clk 0:03:01]}  g6 {[%clk 0:03:00]} 3. d4 {[%clk 0:03:01]}  Bg7 {[%clk 0:03:00]} 4. Nf3 {[%clk 0:03:01]}  d6 {[%clk 0:03:01]} 5. g3 {[%clk 0:03:00]}  O-O {[%clk 0:03:01]} 6. Bg2 {[%clk 0:03:00]}  Nc6 {[%clk 0:03:01]} 7. O-O {[%clk 0:03:00]}  a6 {[%clk 0:02:58]} 8. b3 {[%clk 0:02:54]}  Rb8 {[%clk 0:02:57]} 9. d5 {[%clk 0:02:55]}  Na5 {[%clk 0:02:54]} 10. Bg5 {[%clk 0:02:54]}  h6 {[%clk 0:02:53]} 11. Bd2 {[%clk 0:02:53]}  c5 {[%clk 0:02:52]} 12. dxc6 {[%clk 0:02:53]}  Nxc6 {[%clk 0:02:52]} 13. Rc1 {[%clk 0:02:52]}  Kh7 {[%clk 0:02:49]} 14. h3 {[%clk 0:02:44]}  d5 {[%clk 0:02:34]} 15. Bf4 {[%clk 0:02:40]}  Ra8 {[%clk 0:02:14]} 16. cxd5 {[%clk 0:02:38]}  Nb4 {[%clk 0:02:11]} 17. e4 {[%clk 0:02:38]}  a5 {[%clk 0:01:53]} 18. a3 {[%clk 0:02:37]}  Na6 {[%clk 0:01:53]} 19. Be5 {[%clk 0:02:34]}  Bd7 {[%clk 0:01:47]} 20. Nd4 {[%clk 0:02:33]}  Rc8 {[%clk 0:01:44]} 21. Bf4 {[%clk 0:02:15]}  Qb6 {[%clk 0:01:41]} 22. Be3 {[%clk 0:02:14]}  Qd6 {[%clk 0:01:36]} 23. Ncb5 {[%clk 0:02:11]}  Qb8 {[%clk 0:01:27]} 24. Bf4 {[%clk 0:02:09]}  Qa8 {[%clk 0:01:24]} 25. Qd2 {[%clk 0:02:08]}  Nh5 {[%clk 0:01:19]} 26. Be3 {[%clk 0:02:06]}  Nc5 {[%clk 0:01:13]} 27. b4 {[%clk 0:01:53]}  Bxb5 {[%clk 0:01:07]} 28. Nxb5 {[%clk 0:01:51]}  Nb3 {[%clk 0:00:54]} 29. Rxc8 {[%clk 0:01:50]}  Qxc8 {[%clk 0:00:54]} 30. Qd3 {[%clk 0:01:45]}  a4 {[%clk 0:00:54]} 31. Kh2 {[%clk 0:01:40]}  Nf6 {[%clk 0:00:53]} 32. e5 {[%clk 0:01:39]}  Nd7 {[%clk 0:00:41]} 33. f4 {[%clk 0:01:39]}  f5 {[%clk 0:00:32]} 34. d6 {[%clk 0:01:39]}  exd6 {[%clk 0:00:29]} 35. Nxd6 {[%clk 0:01:39]}  Qc7 {[%clk 0:00:25]} 36. Nxb7 {[%clk 0:01:38]}  Nb6 {[%clk 0:00:22]} 37. Nd6 {[%clk 0:01:36]}  Rd8 {[%clk 0:00:18]} 38. Rf2 {[%clk 0:01:36]}  Bf8 {[%clk 0:00:14]} 39. Rc2 {[%clk 0:01:35]}  Qb8 {[%clk 0:00:10]} 40. Qb5 {[%clk 0:01:33]}  Bxd6 {[%clk 0:00:02]} 41. Qxb6 {[%clk 0:01:33]} 1-0


[Site "https://www.chess.com"]

[Event "Titled Tuesday Blitz March 01 Early 2022"]
[White "Rangel, Daniel"]
[Black "Kretov, Evgenij"]
[WhiteFideId "2124475"]
[BlackFideId "4167821"]
[WhiteElo "2187"]
[BlackElo "2303"]
[Result "0-1"]
[Round "09"]
[TimeControl "180+1"]
[Date "2022.03.01"]
[WhiteClock "0:00:07"]
[BlackClock "0:00:07"]

1. c4 {[%clk 0:02:47]}  Nf6 {[%clk 0:02:59]} 2. g3 {[%clk 0:02:46]}  c5 {[%clk 0:02:57]} 3. Bg2 {[%clk 0:02:46]}  d5 {[%clk 0:02:56]} 4. cxd5 {[%clk 0:02:45]}  Nxd5 {[%clk 0:02:56]} 5. Nf3 {[%clk 0:02:46]}  Nc6 {[%clk 0:02:53]} 6. d4 {[%clk 0:02:46]}  e6 {[%clk 0:02:52]} 7. O-O {[%clk 0:02:45]}  cxd4 {[%clk 0:02:51]} 8. Nxd4 {[%clk 0:02:45]}  Bc5 {[%clk 0:02:51]} 9. Nxc6 {[%clk 0:02:37]}  bxc6 {[%clk 0:02:48]} 10. Qc2 {[%clk 0:02:36]}  Qb6 {[%clk 0:02:48]} 11. a3 {[%clk 0:02:29]}  O-O {[%clk 0:02:43]} 12. Nc3 {[%clk 0:02:19]}  Nxc3 {[%clk 0:02:42]} 13. Qxc3 {[%clk 0:02:20]}  Ba6 {[%clk 0:02:36]} 14. Bf3 {[%clk 0:02:09]}  Rac8 {[%clk 0:02:26]} 15. Rd1 {[%clk 0:01:51]}  Bxf2+ {[%clk 0:02:25]} 16. Kg2 {[%clk 0:01:52]}  Bc5 {[%clk 0:02:19]} 17. b4 {[%clk 0:01:40]}  Be7 {[%clk 0:02:18]} 18. Be3 {[%clk 0:01:40]}  Bf6 {[%clk 0:02:08]} 19. Qb3 {[%clk 0:01:18]}  c5 {[%clk 0:01:42]} 20. Rac1 {[%clk 0:01:12]}  c4 {[%clk 0:01:41]} 21. Qa4 {[%clk 0:01:07]}  Qxe3 {[%clk 0:01:22]} 22. Qxa6 {[%clk 0:01:04]}  Bd4 {[%clk 0:01:10]} 23. Rxc4 {[%clk 0:00:52]}  Rxc4 {[%clk 0:01:07]} 24. Qxc4 {[%clk 0:00:51]}  Bb6 {[%clk 0:01:07]} 25. a4 {[%clk 0:00:44]}  Qf2+ {[%clk 0:01:05]} 26. Kh3 {[%clk 0:00:44]}  g6 {[%clk 0:00:47]} 27. a5 {[%clk 0:00:33]}  Be3 {[%clk 0:00:46]} 28. b5 {[%clk 0:00:21]}  h5 {[%clk 0:00:44]} 29. b6 {[%clk 0:00:13]}  axb6 {[%clk 0:00:43]} 30. a6 {[%clk 0:00:13]}  b5 {[%clk 0:00:43]} 31. Qxb5 {[%clk 0:00:14]}  h4 {[%clk 0:00:40]} 32. Qe5 {[%clk 0:00:10]}  Bh6 {[%clk 0:00:21]} 33. gxh4 {[%clk 0:00:08]}  Bg7 {[%clk 0:00:21]} 34. Qg3 {[%clk 0:00:08]}  Qb6 {[%clk 0:00:20]} 35. Kg2 {[%clk 0:00:08]}  Qxa6 {[%clk 0:00:20]} 36. h5 {[%clk 0:00:09]}  gxh5 {[%clk 0:00:19]} 37. Bxh5 {[%clk 0:00:09]}  Qc6+ {[%clk 0:00:19]} 38. Bf3 {[%clk 0:00:08]}  Qc5 {[%clk 0:00:19]} 39. Kh1 {[%clk 0:00:08]}  Qc3 {[%clk 0:00:18]} 40. Rg1 {[%clk 0:00:08]}  Rd8 {[%clk 0:00:18]} 41. h4 {[%clk 0:00:07]}  Kf8 {[%clk 0:00:18]} 42. h5 {[%clk 0:00:06]}  Be5 {[%clk 0:00:18]} 43. Qg8+ {[%clk 0:00:06]}  Ke7 {[%clk 0:00:19]} 44. Qg5+ {[%clk 0:00:06]}  Bf6 {[%clk 0:00:19]} 45. Qg4 {[%clk 0:00:06]}  Rh8 {[%clk 0:00:17]} 46. Kg2 {[%clk 0:00:06]}  Bd4 {[%clk 0:00:16]} 47. Rb1 {[%clk 0:00:05]}  Be5 {[%clk 0:00:14]} 48. Rb7+ {[%clk 0:00:05]}  Bc7 {[%clk 0:00:14]} 49. Qg5+ {[%clk 0:00:05]}  Kd7 {[%clk 0:00:12]} 50. Qb5+ {[%clk 0:00:05]}  Kd8 {[%clk 0:00:10]} 51. Qa6 {[%clk 0:00:04]}  Rg8+ {[%clk 0:00:10]} 52. Kf2 {[%clk 0:00:04]}  Qd4+ {[%clk 0:00:08]} 53. e3 {[%clk 0:00:04]}  Qd2+ {[%clk 0:00:07]} 54. Be2 {[%clk 0:00:02]}  Qc3 {[%clk 0:00:05]} 55. Qa8+ {[%clk 0:00:02]}  Kd7 {[%clk 0:00:05]} 56. Qa7 {[%clk 0:00:02]}  Rg5 {[%clk 0:00:04]} 57. Qd4+ {[%clk 0:00:03]}  Qxd4 {[%clk 0:00:04]} 58. exd4 {[%clk 0:00:04]}  Kc6 {[%clk 0:00:03]} 59. Ke3 {[%clk 0:00:05]}  Kxb7 {[%clk 0:00:04]} 60. Bf3+ {[%clk 0:00:05]}  Kc8 {[%clk 0:00:03]} 61. Ke4 {[%clk 0:00:05]}  Rg8 {[%clk 0:00:03]} 62. d5 {[%clk 0:00:04]}  Rh8 {[%clk 0:00:04]} 63. dxe6 {[%clk 0:00:04]}  fxe6 {[%clk 0:00:05]} 64. Bg4 {[%clk 0:00:05]}  Kd7 {[%clk 0:00:05]} 65. Kf3 {[%clk 0:00:05]}  Ke7 {[%clk 0:00:06]} 66. Kg2 {[%clk 0:00:04]}  Kf6 {[%clk 0:00:06]} 67. Kf3 {[%clk 0:00:05]}  e5 {[%clk 0:00:07]} 68. Ke3 {[%clk 0:00:05]}  Kg5 {[%clk 0:00:08]} 69. Be2 {[%clk 0:00:06]}  Rxh5 {[%clk 0:00:07]} 70. Ke4 {[%clk 0:00:07]}  Rh2 {[%clk 0:00:07]} 71. Bf3 {[%clk 0:00:07]}  Rh4+ {[%clk 0:00:07]} 72. Kd5 {[%clk 0:00:06]}  Rf4 {[%clk 0:00:07]} 73. Ke6 {[%clk 0:00:07]}  Rxf3 {[%clk 0:00:07]} 0-1


[Site "https://www.chess.com"]

[Event "Titled Tuesday Blitz March 01 Early 2022"]
[White "Risteski, Emil"]
[Black "Gadimbayli, Abdulla"]
[WhiteFideId "15005267"]
[BlackFideId "13404938"]
[WhiteElo "2070"]
[BlackElo "2282"]
[Result "1-0"]
[Round "09"]
[TimeControl "180+1"]
[Date "2022.03.01"]
[WhiteClock "0:00:15"]
[BlackClock "0:00:35"]

1. e4 {[%clk 0:03:00]}  e5 {[%clk 0:02:58]} 2. Nf3 {[%clk 0:03:00]}  d5 {[%clk 0:02:58]} 3. exd5 {[%clk 0:03:01]}  e4 {[%clk 0:02:59]} 4. Qe2 {[%clk 0:03:00]}  Nf6 {[%clk 0:03:00]} 5. Nc3 {[%clk 0:02:59]}  Be7 {[%clk 0:03:00]} 6. Nxe4 {[%clk 0:02:59]}  O-O {[%clk 0:03:00]} 7. d3 {[%clk 0:02:56]}  Nxd5 {[%clk 0:02:57]} 8. c4 {[%clk 0:02:42]}  Nb4 {[%clk 0:02:52]} 9. a3 {[%clk 0:02:40]}  N4c6 {[%clk 0:02:52]} 10. Bf4 {[%clk 0:02:30]}  Bg4 {[%clk 0:02:35]} 11. O-O-O {[%clk 0:02:27]}  Nd4 {[%clk 0:02:23]} 12. Qe3 {[%clk 0:02:27]}  Nbc6 {[%clk 0:02:18]} 13. Nxd4 {[%clk 0:02:18]}  Nxd4 {[%clk 0:02:19]} 14. f3 {[%clk 0:02:16]}  Bf5 {[%clk 0:02:18]} 15. g4 {[%clk 0:02:12]}  Bg6 {[%clk 0:02:18]} 16. h4 {[%clk 0:02:10]}  f5 {[%clk 0:02:18]} 17. Ng5 {[%clk 0:02:07]}  fxg4 {[%clk 0:02:08]} 18. fxg4 {[%clk 0:01:48]}  Bc5 {[%clk 0:02:08]} 19. Qg3 {[%clk 0:01:35]}  Qf6 {[%clk 0:01:47]} 20. Be5 {[%clk 0:01:31]}  Qb6 {[%clk 0:01:48]} 21. h5 {[%clk 0:01:06]}  Rf2 {[%clk 0:01:42]} 22. Qxf2 {[%clk 0:00:47]}  Nb3+ {[%clk 0:01:42]} 23. Kb1 {[%clk 0:00:42]}  Bxf2 {[%clk 0:01:42]} 24. hxg6 {[%clk 0:00:42]}  h6 {[%clk 0:01:42]} 25. Ne4 {[%clk 0:00:28]}  Bd4 {[%clk 0:01:40]} 26. Bxd4 {[%clk 0:00:27]}  Nxd4 {[%clk 0:01:41]} 27. g5 {[%clk 0:00:22]}  Rf8 {[%clk 0:01:05]} 28. Bg2 {[%clk 0:00:20]}  Qb3 {[%clk 0:00:56]} 29. Rd2 {[%clk 0:00:17]}  h5 {[%clk 0:00:37]} 30. Nc5 {[%clk 0:00:15]}  Qb6 {[%clk 0:00:35]} 31. Bd5+ {[%clk 0:00:15]} 1-0


[Site "https://www.chess.com"]

[Event "Titled Tuesday Blitz March 01 Early 2022"]
[White "Rodchenkov, Sergey D."]
[Black "Kucuksari, Kaan"]
[WhiteFideId "4168712"]
[BlackFideId "6380166"]
[WhiteElo "2306"]
[BlackElo "2305"]
[Result "0-1"]
[Round "09"]
[TimeControl "180+1"]
[Date "2022.03.01"]
[WhiteClock "0:01:34"]
[BlackClock "0:02:43"]

1. e4 {[%clk 0:03:00]}  c5 {[%clk 0:02:57]} 2. Nf3 {[%clk 0:03:01]}  Nc6 {[%clk 0:02:57]} 3. d4 {[%clk 0:03:01]}  cxd4 {[%clk 0:02:57]} 4. Nxd4 {[%clk 0:03:02]}  e5 {[%clk 0:02:58]} 5. Nb5 {[%clk 0:02:55]}  Nf6 {[%clk 0:02:59]} 6. Bd3 {[%clk 0:02:36]}  a6 {[%clk 0:02:57]} 7. N5a3 {[%clk 0:02:35]}  d5 {[%clk 0:02:55]} 8. exd5 {[%clk 0:02:32]}  Qxd5 {[%clk 0:02:55]} 9. O-O {[%clk 0:02:31]}  Bb4 {[%clk 0:02:55]} 10. Nc3 {[%clk 0:02:24]}  Bxc3 {[%clk 0:02:53]} 11. bxc3 {[%clk 0:02:25]}  O-O {[%clk 0:02:50]} 12. Nc4 {[%clk 0:02:13]}  e4 {[%clk 0:02:48]} 13. Nb6 {[%clk 0:01:59]}  Qa5 {[%clk 0:02:48]} 14. Nxa8 {[%clk 0:01:43]}  exd3 {[%clk 0:02:47]} 15. Qxd3 {[%clk 0:01:44]}  Bf5 {[%clk 0:02:46]} 16. Qg3 {[%clk 0:01:40]}  Rxa8 {[%clk 0:02:46]} 17. Bg5 {[%clk 0:01:37]}  Ne4 {[%clk 0:02:46]} 18. Qe3 {[%clk 0:01:36]}  Qxc3 {[%clk 0:02:42]} 19. Qxc3 {[%clk 0:01:34]}  Nxc3 {[%clk 0:02:43]} 20. Rfe1 {[%clk 0:01:34]} 0-1


[Site "https://www.chess.com"]

[Event "Titled Tuesday Blitz March 01 Early 2022"]
[White "Sarana, Alexey"]
[Black "Durarbayli, Vasif"]
[WhiteFideId "24133795"]
[BlackFideId "13402935"]
[WhiteElo "2665"]
[BlackElo "2528"]
[Result "1-0"]
[Round "09"]
[TimeControl "180+1"]
[Date "2022.03.01"]
[WhiteClock "0:00:05"]
[BlackClock "0:00:03"]

1. d4 {[%clk 0:03:00]}  Nf6 {[%clk 0:03:00]} 2. c4 {[%clk 0:03:01]}  e6 {[%clk 0:03:00]} 3. Nc3 {[%clk 0:03:02]}  Bb4 {[%clk 0:03:00]} 4. e3 {[%clk 0:03:02]}  O-O {[%clk 0:02:59]} 5. Bd3 {[%clk 0:03:03]}  d5 {[%clk 0:02:59]} 6. a3 {[%clk 0:03:03]}  Bxc3+ {[%clk 0:02:59]} 7. bxc3 {[%clk 0:03:04]}  dxc4 {[%clk 0:02:58]} 8. Bxc4 {[%clk 0:03:04]}  c5 {[%clk 0:02:59]} 9. Ne2 {[%clk 0:03:05]}  Qc7 {[%clk 0:02:59]} 10. Bd3 {[%clk 0:03:05]}  b6 {[%clk 0:02:59]} 11. e4 {[%clk 0:03:05]}  Ba6 {[%clk 0:02:40]} 12. Bg5 {[%clk 0:03:02]}  Bxd3 {[%clk 0:02:37]} 13. Qxd3 {[%clk 0:03:03]}  Nbd7 {[%clk 0:02:36]} 14. O-O {[%clk 0:03:03]}  Rac8 {[%clk 0:02:33]} 15. e5 {[%clk 0:03:03]}  c4 {[%clk 0:02:12]} 16. Qh3 {[%clk 0:03:01]}  Nd5 {[%clk 0:02:11]} 17. Qg3 {[%clk 0:03:00]}  f5 {[%clk 0:02:03]} 18. a4 {[%clk 0:02:52]}  a6 {[%clk 0:01:58]} 19. Rfb1 {[%clk 0:02:47]}  Qc6 {[%clk 0:01:44]} 20. Qf3 {[%clk 0:02:46]}  Rb8 {[%clk 0:01:17]} 21. Nf4 {[%clk 0:02:42]}  h6 {[%clk 0:01:07]} 22. Nxd5 {[%clk 0:02:28]}  Qxd5 {[%clk 0:01:07]} 23. Be7 {[%clk 0:02:26]}  Qxf3 {[%clk 0:00:44]} 24. gxf3 {[%clk 0:02:26]}  Rfc8 {[%clk 0:00:45]} 25. Bd6 {[%clk 0:02:21]}  Rb7 {[%clk 0:00:45]} 26. Rb4 {[%clk 0:02:12]}  Kf7 {[%clk 0:00:45]} 27. Rab1 {[%clk 0:02:12]}  Rc6 {[%clk 0:00:45]} 28. f4 {[%clk 0:02:09]}  Ra7 {[%clk 0:00:44]} 29. h4 {[%clk 0:02:03]}  Ra8 {[%clk 0:00:43]} 30. Kg2 {[%clk 0:02:01]}  Rg8 {[%clk 0:00:43]} 31. Kf3 {[%clk 0:02:00]}  g6 {[%clk 0:00:42]} 32. R4b2 {[%clk 0:01:57]}  h5 {[%clk 0:00:37]} 33. Re1 {[%clk 0:01:55]}  Re8 {[%clk 0:00:35]} 34. Ba3 {[%clk 0:01:46]}  Rd8 {[%clk 0:00:29]} 35. Reb1 {[%clk 0:01:21]}  Rdc8 {[%clk 0:00:26]} 36. Bd6 {[%clk 0:01:20]}  Re8 {[%clk 0:00:26]} 37. Re2 {[%clk 0:01:17]}  Nf6 {[%clk 0:00:21]} 38. exf6 {[%clk 0:00:25]}  Rxd6 {[%clk 0:00:21]} 39. Re5 {[%clk 0:00:26]}  Rc8 {[%clk 0:00:18]} 40. d5 {[%clk 0:00:22]}  exd5 {[%clk 0:00:14]} 41. Re7+ {[%clk 0:00:21]}  Kxf6 {[%clk 0:00:14]} 42. Rb7 {[%clk 0:00:22]}  Rcc6 {[%clk 0:00:14]} 43. Ke3 {[%clk 0:00:17]}  d4+ {[%clk 0:00:08]} 44. cxd4 {[%clk 0:00:17]}  Rd5 {[%clk 0:00:09]} 45. R1xb6 {[%clk 0:00:13]}  Re6+ {[%clk 0:00:06]} 46. Rxe6+ {[%clk 0:00:08]}  Kxe6 {[%clk 0:00:07]} 47. Rc7 {[%clk 0:00:08]}  Rd6 {[%clk 0:00:04]} 48. Rxc4 {[%clk 0:00:09]}  Rb6 {[%clk 0:00:05]} 49. Kd3 {[%clk 0:00:09]}  Rb2 {[%clk 0:00:02]} 50. Rc6+ {[%clk 0:00:08]}  Kd5 {[%clk 0:00:02]} 51. Rc5+ {[%clk 0:00:08]}  Kd6 {[%clk 0:00:03]} 52. f3 {[%clk 0:00:08]}  Rb3+ {[%clk 0:00:03]} 53. Kc4 {[%clk 0:00:08]}  Rxf3 {[%clk 0:00:03]} 54. Ra5 {[%clk 0:00:09]}  Rxf4 {[%clk 0:00:03]} 55. Rxa6+ {[%clk 0:00:10]}  Kc7 {[%clk 0:00:03]} 56. Rxg6 {[%clk 0:00:07]}  Rxh4 {[%clk 0:00:04]} 57. Kc5 {[%clk 0:00:07]}  Rh1 {[%clk 0:00:03]} 58. Rg7+ {[%clk 0:00:08]}  Kc8 {[%clk 0:00:04]} 59. d5 {[%clk 0:00:08]}  Rc1+ {[%clk 0:00:04]} 60. Kd6 {[%clk 0:00:08]}  f4 {[%clk 0:00:05]} 61. a5 {[%clk 0:00:07]}  Kb8 {[%clk 0:00:02]} 62. Rf7 {[%clk 0:00:06]}  h4 {[%clk 0:00:02]} 63. Rxf4 {[%clk 0:00:06]}  h3 {[%clk 0:00:03]} 64. Rh4 {[%clk 0:00:06]}  Rc3 {[%clk 0:00:03]} 65. Rh7 {[%clk 0:00:05]}  Rd3 {[%clk 0:00:02]} 66. a6 {[%clk 0:00:05]}  Ra3 {[%clk 0:00:02]} 67. Ke5 {[%clk 0:00:04]}  Rxa6 {[%clk 0:00:02]} 68. d6 {[%clk 0:00:04]}  Ra1 {[%clk 0:00:02]} 69. Ke6 {[%clk 0:00:03]}  Kc8 {[%clk 0:00:01]} 70. Rh8+ {[%clk 0:00:03]}  Kb7 {[%clk 0:00:02]} 71. d7 {[%clk 0:00:04]}  Re1+ {[%clk 0:00:02]} 72. Kf5 {[%clk 0:00:04]}  Rf1+ {[%clk 0:00:02]} 73. Kg4 {[%clk 0:00:05]}  Rg1+ {[%clk 0:00:03]} 74. Kf4 {[%clk 0:00:04]}  Rf1+ {[%clk 0:00:03]} 75. Kg3 {[%clk 0:00:05]} 1-0


[Site "https://www.chess.com"]